Cogmind - Beta 13 @@@ ROGUE MODE // 2024.03.31 @ 02:47:26 Player: firstiteration Result: Destroyed by C0-NUM(R) with Subdweller Beam Cannon Performance ------------- Evolutions (0) 0 Regions Visited (3) 600 Robots Destroyed (8) 40 Value Destroyed (206) 206 Prototype IDs (0) 0 Alien Tech Used (0) 0 Bonus (0) 0 TOTAL SCORE: 846 Bonus ------- None Cogmind --------- Core Integrity 0/250 Matter 300/300 Energy 125/125 System Corruption 0% Temperature Cool (9) Movement Core (150) Ox2 Location -10/Subcaves Parts ------- > --- POWER (1) -------- Light Ion Engine > --- PROPULSION (2) --- (None) > --- UTILITY (2) ------ Small Storage Unit > --- WEAPON (2) ------- (None) > --- INVENTORY (8) ---- Aluminum Leg Aluminum Leg Aluminum Leg EM Pulse Gun EM Pulse Gun EM Pulse Gun EM Pulse Gun Peak State ------------ > --- POWER ------------ Ion Engine > --- PROPULSION ------- Aluminum Leg Aluminum Leg > --- UTILITY ---------- Small Storage Unit Hacking Suite > --- WEAPON ----------- EM Pulse Gun EM Pulse Gun > --- INVENTORY -------- Light Ion Engine Aluminum Leg Aluminum Leg [Rating: 9] Favorites ----------- Power Ion Engine Engine Ion Engine Propulsion Aluminum Leg Leg Aluminum Leg Utility Small Storage Unit Storage Small Storage Unit Hackware Hacking Suite Weapon EM Pulse Gun Energy Gun EM Pulse Gun Ballistic Gun Assault Rifle Build | -11 -10 -10 -10 ------- Run | Yrd Mat Min Sub Slots Evolved . | . . . . Power . | . . . . Propulsion . | . . . . Utility . | . . . . Weapon . | . . . . Parts Attached 14 | 5 8 . 1 Power 3 | 1 1 . 1 Engine 3 | 1 1 . 1 Core . | . . . . Reactor . | . . . . Propulsion 2 | 2 . . . Treads . | . . . . Leg 2 | 2 . . . Wheel . | . . . . Hover . | . . . . Flight . | . . . . Utility 2 | 1 1 . . Device . | . . . . Storage 1 | 1 . . . Processor . | . . . . Hackware 1 | . 1 . . Protection . | . . . . Artifact . | . . . . Weapon 7 | 1 6 . . Energy Gun 5 | 1 4 . . Energy Cannon . | . . . . Ballistic Gun 2 | . 2 . . Ballistic Cannon . | . . . . Launcher . | . . . . Special Weapon . | . . . . Impact Weapon . | . . . . Slashing Weapon . | . . . . Piercing Weapon . | . . . . Special Melee Weapon . | . . . . Unidentified Prototypes . | . . . . Parts Lost 6 | . . . 6 Power 1 | . . . 1 Propulsion 2 | . . . 2 Utility 1 | . . . 1 Weapon 2 | . . . 2 Highest Loss Streak 6 | . . . 6 To Critical Strikes . | . . . . Average Slot Usage (%) 96 | . 90 100 97 Engine 13 | . 14 14 13 Leg 27 | . 28 28 27 Storage 14 | . 14 14 14 Hackware 11 | . 7 14 14 Energy Gun 25 | . 21 28 26 Ballistic Gun 1 | . 4 . . Naked Turns . | . . . . Heaviest Build 14 | 10 14 14 14 Greatest Support 20 | 20 20 20 20 Greatest Overweight (x) 1 | 1 . . . Average Overweight (x) . | . . . . Largest Inventory Capacity 8 | 8 8 8 8 Average Capacity 7 | 6 8 8 8 Most Carried 8 | 4 8 8 8 Average Carried 6 | 2 4 8 7 Final Capacity 8 | 8 8 8 8 Final Carried 8 | 3 8 8 7 Class Distribution -------------------- 100% | Mutant Dominant Class ---------------- Mutant | -10/Materials Mutant | -10/Mines Mutant | -10/Subcaves Resources | -11 -10 -10 -10 ----------- Run | Yrd Mat Min Sub Matter Collected 330 | 233 66 31 . Remotely . | . . . . Salvage Created 274 | . 254 20 . Parts 18 | . 17 1 . Haulers Intercepted . | . . . . Recyclers Shooed . | . . . . Parts Field Recycled . | . . . . Retrieved Matter . | . . . . Parts Self-Destructed 8 | . . . 8 Prevented . | . . . . Kills | -11 -10 -10 -10 ------- Run | Yrd Mat Min Sub Combat Hostiles Destroyed 5 | . 4 1 . Guns 5 | . 4 1 . Classes Destroyed 5 | . 4 1 . Builder 1 | . 1 . . Operator 1 | . 1 . . Watcher 1 | . 1 . . Swarmer 1 | . . 1 . Grunt 4 | . 4 . . Best Kill Streak 4 | . 4 1 . Combat Bots Only 2 | . 2 1 . Max Kills in Single Turn 1 | . 1 1 . Gunslinging . | . . . . Exploded . | . . . . Melee . | . . . . Uniques/NPCs Destroyed . | . . . . Combat | -11 -10 -10 -10 -------- Run | Yrd Mat Min Sub Hostile Shots Fired 59 | . 16 3 40 Missed 16 | . 4 . 12 Damage Taken 776 | . 149 24 603 Core 265 | . 54 . 211 Absorbed by Shields . | . . . . Core Remaining (%) 100 | 100 . . . Volleys Fired 27 | . 22 2 3 Largest 2 | . 2 2 2 Hottest 80 | . 80 80 80 Shots Fired 52 | . 42 4 6 Gun 52 | . 42 4 6 Cannon . | . . . . Launcher . | . . . . Special . | . . . . Kinetic . | . . . . Thermal 2 | . 2 . . Explosive . | . . . . Electromagnetic 50 | . 40 4 6 Robot Hit Streak 5 | . 5 1 5 Robot Miss Streak 5 | . 5 2 1 Penetration Max . | . . . . Secondary Targets 2 | . 2 . . Max Gunslinging Chain 1 | . 1 . . Shots Hit Robots 28 | . 22 1 5 Core Hits 14 | . 12 1 1 Critical Kills . | . . . . Critical Parts Destroyed . | . . . . Critical Strikes . | . . . . Melee Attacks . | . . . . Impact . | . . . . Slashing . | . . . . Piercing . | . . . . Sneak Attacks . | . . . . Combat Hostiles . | . . . . Follow-up Attacks . | . . . . Damage Inflicted 450 | . 370 12 68 Guns 422 | . 342 12 68 Cannons . | . . . . Explosions 28 | . 28 . . Melee . | . . . . Ramming . | . . . . Kinetic . | . . . . Thermal 40 | . 40 . . Explosive . | . . . . Electromagnetic 410 | . 330 12 68 Impact . | . . . . Slashing . | . . . . Piercing . | . . . . Highest Corruption . | . . . . Average Corruption . | . . . . Corruption Purged . | . . . . Corruption Blocked . | . . . . Overload Shots . | . . . . Overflow Damage . | . . . . Projectiles . | . . . . Explosions . | . . . . Melee . | . . . . Knockbacks . | . . . . Impact . | . . . . Kinetic . | . . . . Secondary . | . . . . Self-Inflicted Damage . | . . . . Shots . | . . . . Rammed . | . . . . Targets Rammed . | . . . . Kicked . | . . . . Crushed . | . . . . Highest Temperature 153 | . 153 36 . Average Temperature 46 | . 48 20 . Received Heat Transfer 225 | . 81 . 144 Siege Activations . | . . . . Robots Corrupted . | . . . . Combat Hostiles . | . . . . Parts Fried . | . . . . Impact Corruptions . | . . . . Robots Melted . | . . . . Combat Hostiles . | . . . . Parts Melted . | . . . . Heat Transferred 37 | . 37 . . Parts Sabotaged . | . . . . Parts Stolen . | . . . . Parts Stripped . | . . . . Power Chain Reactions 1 | . 1 . . Alert | -11 -10 -10 -10 ------- Run | Yrd Mat Min Sub Peak Influence 158 | . 158 30 . Initial . | . . . . Average 34 | . 91 1 . Maximum Alert Level . | . . . . Low Security (%) 100 | 100 100 100 . Level 1 . | . . . . Level 2 . | . . . . Level 3 . | . . . . Level 4 . | . . . . Level 5 . | . . . . High Security . | . . . . Max Security . | . . . . Squads Dispatched . | . . . . Investigation . | . . . . Extermination . | . . . . Reinforcement . | . . . . Assault . | . . . . Garrison . | . . . . Intercept . | . . . . Searches Triggered . | . . . . Construction Impeded . | . . . . Haulers Reinforced . | . . . . Active Scanning Responses . | . . . . Cargo Convoy Interrupts . | . . . . Stealth | -11 -10 -10 -10 --------- Run | Yrd Mat Min Sub Distress Signals . | . . . . Communications Jammed . | . . . . Distress Signals . | . . . . Times Spotted 20 | . 9 1 10 Peak Tracking Total 9 | . 3 1 9 Tactical Retreats 1 | . 1 . . Traps | -11 -10 -10 -10 ------- Run | Yrd Mat Min Sub Traps Triggered . | . . . . Indirectly . | . . . . Trap Hack Attempts . | . . . . Triggered . | . . . . Disarmed . | . . . . Reprogrammed . | . . . . Reused . | . . . . Traps Extracted . | . . . . Installed . | . . . . Triggered . | . . . . Machines | -11 -10 -10 -10 ---------- Run | Yrd Mat Min Sub Machines Disabled 1 | . 1 . . Max in Single Turn 1 | . 1 . . Machines Repaired . | . . . . Machines Dismantled . | . . . . Machines Sabotaged . | . . . . Overloaded Fab Kills . | . . . . Hacking | -11 -10 -10 -10 --------- Run | Yrd Mat Min Sub Machines Accessed 2 | . 2 . . Terminals 2 | . 2 . . Fabricators . | . . . . Repair Stations . | . . . . Recycling Units . | . . . . Scanalyzers . | . . . . Garrison Access . | . . . . Total Hacks 7 | . 7 . . Successful 5 | . 5 . . Failed 2 | . 2 . . Catastrophic 1 | . 1 . . Database Lockouts . | . . . . Manual . | . . . . Terminals 7 | . 7 . . Fabricators . | . . . . Repair Stations . | . . . . Recycling Units . | . . . . Scanalyzers . | . . . . Garrison Access . | . . . . Terminal Hacks 5 | . 5 . . Record 3 | . 3 . . Investigation Status 1 | . 1 . . Zone Layout 1 | . 1 . . Fabricator Hacks . | . . . . Repair Station Hacks . | . . . . Recycling Unit Hacks . | . . . . Scanalyzer . | . . . . Garrison Access Hacks . | . . . . Unauthorized Hacks . | . . . . Terminals . | . . . . Fabricators . | . . . . Repair Stations . | . . . . Recycling Units . | . . . . Scanalyzers . | . . . . Garrison Access . | . . . . Data Cores Recovered 1 | . 1 . . Used . | . . . . Hacking Detections 2 | . 2 . . Full Trace Events . | . . . . Feedback Events . | . . . . Feedback Blocked . | . . . . Robot Schematics Acquired . | . . . . Robots Built . | . . . . Authchips . | . . . . Time . | . . . . Total Robot Build Rating . | . . . . Part Schematics Acquired . | . . . . Parts Built . | . . . . Authchips . | . . . . Time . | . . . . Total Part Build Rating . | . . . . Parts Repaired . | . . . . Time . | . . . . Parts Recycled . | . . . . Recycled Matter . | . . . . Retrieved Matter . | . . . . Retrieved Components . | . . . . Parts Scanalyzed . | . . . . Part Schematics Acquired . | . . . . Parts Damaged . | . . . . Bothacking | -11 -10 -10 -10 ------------ Run | Yrd Mat Min Sub Used RIF Installer . | . . . . Robots Hacked . | . . . . Non-combat . | . . . . Combat . | . . . . Robot Hacks Applied . | . . . . Relay Couplers Released . | . . . . Fabnet Peak Effective % . | . . . . Robots Rewired . | . . . . Allies Hacked . | . . . . Hacks Repelled . | . . . . Allies | -11 -10 -10 -10 -------- Run | Yrd Mat Min Sub Total Allies . | . . . . Largest Group . | . . . . Highest-Rated Group . | . . . . Highest-Rated Ally . | . . . . Total Orders . | . . . . Ally Attacks . | . . . . Total Damage . | . . . . Kills . | . . . . Allies Corrupted . | . . . . Allies Melted . | . . . . Intel | -11 -10 -10 -10 ------- Run | Yrd Mat Min Sub Robot Analysis Total . | . . . . Derelict Logs Recovered 1 | . . 1 . Drone Launches . | . . . . Drone Recoveries . | . . . . Exploration | -11 -10 -10 -10 ------------- Run | Yrd Mat Min Sub Turns Passed 1487 | 66 461 741 219 Spaces Moved 1088 | 46 284 596 162 Core 6 | 6 . . . Treads . | . . . . Legs 1082 | 40 284 596 162 Wheels . | . . . . Hover . | . . . . Flight . | . . . . Fastest Speed 50 | 50 120 120 120 Average Speed 119 | 114 120 120 120 Slowest Speed 120 | 120 120 120 120 Overloaded Moves . | . . . . Propulsion Burnouts . | . . . . Robots Hopped . | . . . . Cave-ins Triggered . | . . . . Exploration Rate (%) 34 | 5 32 94 8 Regions Visited 3 Branch Regions 2 Pre-discovered Areas 1 | . . 1 . Known Exits Taken . | . . . . Unknown Exits Taken 3 | 1 1 1 . Scrap Searched 2 | . . 2 . Spaces Dug . | . . . . Terrain Destroyed 2 | . 2 . . Melee . | . . . . Projectile . | . . . . AOE 2 | . 2 . . Terrain Rammed . | . . . . Walls Destroyed . | . . . . Machines Disabled . | . . . . Actions | -11 -10 -10 -10 --------- Run | Yrd Mat Min Sub Total 1224 | 59 367 618 180 Wait 61 | 1 25 21 14 Move 1085 | 45 283 595 162 Hop . | . . . . Pick Up 26 | 8 18 . . Fast Attach . | . . . . Attach 14 | 5 8 . 1 Detach . | . . . . Swap . | . . . . Drop 11 | . 11 . . Fire 27 | . 22 2 3 Melee . | . . . . Ram . | . . . . Kick . | . . . . Crush . | . . . . Escape Stasis . | . . . . Rewire . | . . . . Trap . | . . . . Miscellaneous . | . . . . Route ------- -11/Scrapyard -10/Materials -10/Mines (discovered 3 exits: [*Mat x2] / [*Sub]) -10/Subcaves History --------- Turn | Location | Event 26 | -11/Scrapyard | Discovered new exit (range 15) 67 | -11/Scrapyard | Entered Materials 162 | -10/Materials | Discovered new exit (range 12) 308 | -10/Materials | Build established: Mutant 528 | -10/Materials | Entered Mines 556 | -10/Mines | Met a Derelict bent on vengeance 579 | -10/Mines | A weapon hastily lodged in a ceiling crevice suddenly fell to the ground 827 | -10/Mines | Found a hidden stash of uninstalled traps 878 | -10/Mines | Discovered new exit (range 12) 890 | -10/Mines | Learned location of Zion (-7) 897 | -10/Mines | Discovered new exit (range 7) 1027 | -10/Mines | Received a Rocket Launcher from a helpful Derelict 1259 | -10/Mines | Discovered new exit (range 10) 1269 | -10/Mines | Entered Subcaves 1446 | -10/Subcaves | Ambushed by swarm of Subdwellers 1452 | -10/Subcaves | Ambushed by Subdwellers from Twisted Machinery 1470 | -10/Subcaves | Core integrity fell below 50% 1488 | -10/Subcaves | Core integrity fell below 20% 1488 | -10/Subcaves | Destroyed by C0-NUM(R) with Subdweller Beam Cannon Last Messages --------------- 01458_ UZ-FFC(R) affixes Scrap Shield Fragment to Scrap Shield. 01458_ Ion Engine destroyed. 01460_ UZ-FFC(R) destroyed. 01462_ 2V-78X(R) suffers critical hit (Burn). 01463_ 86-S5N(R) affixes Scrap Shield Fragment to Scrap Shield. 01464_ 1M-ORW(g) destroyed. 01465_ VF-LGL(g) destroyed. 01468_ Z1-MAB(g) destroyed. 01468_ EM Pulse Gun destroyed. 01468_ 8E-URL(R) misfires. 01470_ 8E-URL(R) IFF system glitched. 01470_ 2V-78X(R) destroyed. 01472_ Aluminum Leg destroyed. 01481_ EM Pulse Gun destroyed. 01482_ 8E-URL(R) affixes Scrap Shield Fragment to Scrap Shield. 01483_ Hacking Suite destroyed. 01486_ Aluminum Leg destroyed. Map ----- +----------------------------------------------------+ | ?????????????????????????????????????????##" #??? | | ?????????????????????????????????????????##" #??? | | ?????????????????????????????????????????# ##??? | | ????????????????????????????????????????## #???? | | ???????????????????????????????????????## #???? | | ???????????????????????????????????????# #???? | | ???????????????????????????????????????# #???? | | ???????????????????????????????????????## ##???? | | ???????????????????????????????????????## #????? | | ???????????????????????????????????????# #????? | | ???????????????????????????????????????# #????? | | ???????????????????????????????????????# ##???? | | ??????????????????????????????????????## #???? | | ?????????????????????????????????????## #???? | | ?????????????????????????????????????# ##??? | | ?????????????????????????????????????# ##?? | | ?????????????????????????????????????## # #?? | | ?????????????????????????####?????????# ### ##?? | | ????????????????????????## ##????????# ## #?? | | ????????????????????##### #????????# # ##?? | | ????????????????????# ## #????????# ##?? | | ??????????#??????#### #???####### ## #?? | | ?????????# ??????# ##??# ###### #?? | | ???????## ??????# #??# #???## ##?? | | ???????# ??????## #??## ! ##### #?? | | ???????# ???????## @ #???# # ## ##?? | | ???????# ????????##R ;####???# #??? | | ??????## ????????##RR ######??## #??? | | ????### ????????# R #???## # ##??? | | ????# #???????## #????# #####???? | | ????# ##?????## ##????# #??????? | | ????# ##???##RR %=! #????## ##??????? | | ???## #??## ==!% ##???# ###???????? | | ## #### R [%=[ ##??# #?????????? | | ?? ]## % ## #### ##?????????? | | ????????# %=] %! ## #??????????? | | ????????## [&%== ## ##??????????? | | ?????????# """!% ## ### #####???????????? | | ?????????## ##[ #### #?# ###???????????????? | | ??????????#########??###?#######?????????????????? | | ?????????????????????????????????????????????????? | | ?????????????????????????????????????????????????? | | ?????????????????????????????????????????????????? | | ?????????????????????????????????????????????????? | | ?????????????????????????????????????????????????? | | ?????????????????????????????????????????????????? | | ?????????????????????????????????????????????????? | | ?????????????????????????????????????????????????? | | ?????????????????????????????????????????????????? | | ?????????????????????????????????????????????????? | +----------------------------------------------------+ Best States ------------- Heat Dissipation 25 Energy Generation 10 Energy Capacity 250 Matter Stores 300 Matter Capacity 300 Sight Range 16 Terrain Scan Density 10 Evasion (%) 55 Offensive Hacking 10 Item Schematics ----------------- None Robot Schematics ------------------ None Fabricated ------------ Nothing Alien Tech Used ----------------- None Achievements -------------- None Challenges ------------ None Game ------ Seed SpectralHeatGenerator Manual? 0 Play Time 00:13:57 Cumulative 4.8 hours Start 2024.03.31 @ 02:35:43 End 2024.03.31 @ 02:47:26 Sessions 1 Manual Loads 0 Difficulty Rogue Special Mode None Game No. 14 Rogue 14 Adventurer 0 Explorer 0 Win Type - Total 0 Types 0/0/0/0/0/0/0/0/0 Lore% 6 Gallery% 8 Achievement% 6 Wizard Run 0 Options --------- Layout 1 ASCII 0 Keyboard 0 Movement Mouse Keybinds 0 Fullscreen 1 Font 24/Smallcaps Map View 50x35 Zoom Use 0% Tactical HUD 1 Map Filters NONE Filters NONE Steam 1 RUN: 93325f1b-8deb-4fe1-90d3-8c12192013ad